bitfinex-derivatives/quotes_SOLF0:USTF0_20260208
["timestamp","ask_amount","ask_price","bid_price","bid_amount"]
[1770591960253,62.91394984,88.469,88.281,158.6911]
[1770591960548,62.91394984,88.469,88.346,158.5751]
[1770591960746,62.91394984,88.469,88.36,24.69962092]
[1770591960936,24.69962092,88.49,88.36,24.69962092]
[1770591960937,24.69962092,88.49,88.378,158.5174]
[1770591961141,63.09529251,88.496,88.425,10.1849]
[1770591961345,63.09529251,88.489,88.36,24.69962092]
[1770591961547,63.09529251,88.489,88.346,158.5755]
[1770591961548,63.09529251,88.449,88.32,24.69962092]
[1770591961747,63.09529251,88.449,88.322,158.6169]
[1770591961943,63.09529251,88.449,88.328,158.6076]
[1770591962143,63.09529251,88.449,88.32,24.69962092]
[1770591962144,63.09529251,88.449,88.337,158.5914]
[1770591962347,63.11349696,88.429,88.319,158.6234]
[1770591962547,63.11349696,88.457,88.342,158.5823]
[1770591962848,63.04412597,88.449,88.32,24.69962092]
[1770591963047,63.04412597,88.429,88.317,158.6267]
[1770591963247,63.04412597,88.429,88.298,158.6612]
[1770591963449,63.04412597,88.409,88.331,10.1957]
[1770591963644,63.04412597,88.409,88.306,158.6474]
[1770591963840,63.04412597,88.409,88.314,158.6318]
[1770591964054,63.04412597,88.409,88.32,158.6218]
[1770591964347,24.69962092,88.44,88.336,158.593]
[1770591964348,63.06154001,88.439,88.336,158.593]
[1770591964546,24.69962092,88.46,88.364,158.5426]
[1770591964755,24.69962092,88.48,88.374,158.5236]
[1770591964953,24.69962092,88.48,88.416,10.1859]
[1770591965150,24.69962092,88.5,88.395,158.4875]
[1770591965447,24.69962092,88.5,88.411,10.1866]
[1770591965646,24.69962092,88.52,88.403,158.4731]
[1770591965847,24.69962092,88.52,88.388,158.499]
[1770591966041,24.69962092,88.52,88.352,20.3867]
[1770591966042,226.1,88.546,88.39,24.69962092]
[1770591966240,24.69962092,88.54,88.395,158.4863]
[1770591966442,24.69962092,88.52,88.435,10.1838]
[1770591966646,56.17347228,88.539,88.39,24.69962092]
[1770591966847,56.17347228,88.539,88.408,158.4637]
[1770591967042,66.34537228,88.539,88.434,10.1839]
[1770591967348,55.82881486,88.519,88.434,10.1839]
[1770591967858,55.82881486,88.519,88.391,158.4946]
[1770591968050,55.85334953,88.499,88.376,158.5217]
[1770591968249,55.85334953,88.499,88.387,158.5015]
[1770591968551,55.85334953,88.499,88.369,158.5333]
[1770591968751,55.21750515,88.479,88.362,158.5456]
[1770591968951,24.69962092,88.5,88.38,24.69962092]
[1770591969149,55.21750515,88.507,88.411,158.4579]
[1770591969352,55.21750515,88.507,88.452,10.1818]
[1770591969951,55.21750515,88.507,88.418,10.1858]
[1770591970351,55.23858629,88.469,88.351,158.565]
[1770591970552,55.23858629,88.469,88.392,10.1888]
[1770591970749,80.31168975,88.43,88.337,158.59]
[1770591970950,55.61206883,88.43,88.338,158.5895]
[1770591971160,55.61206883,88.43,88.343,158.5802]
[1770591971356,55.61206883,88.459,88.359,158.5512]
[1770591971663,24.69962092,88.49,88.38,158.5142]
[1770591971956,24.69962092,88.49,88.372,158.5282]
[1770591972161,24.69962092,88.51,88.379,158.516]
[1770591972359,24.69962092,88.51,88.414,10.1862]
[1770591972759,226.12,88.55,88.377,158.5192]
[1770591972957,24.69962092,88.51,88.418,10.1858]
[1770591973151,24.69962092,88.51,88.37,24.69962092]
[1770591973358,24.69962092,88.51,88.328,12.82099053]
[1770591973359,24.69962092,88.49,88.35,24.69962092]
[1770591973553,250.81962092,88.55,88.351,8.34576712]
[1770591973554,24.69962092,88.47,88.351,8.34576712]
[1770591973759,46.16563774,88.469,88.344,158.579]
[1770591974058,46.16563774,88.469,88.381,10.19]
[1770591974259,46.16563774,88.469,88.349,158.57]
[1770591974458,46.16563774,88.469,88.35,8.34384263]
[1770591974651,46.16563774,88.469,88.388,10.1892]
[1770591976165,46.16563774,88.469,88.374,10.1908]
[1770591976463,46.16563774,88.469,88.32,24.69962092]
[1770591976662,45.79195932,88.447,88.321,8.35070354]
[1770591976867,45.79195932,88.447,88.298,10.0764187]
[1770591976868,45.79195932,88.447,88.322,8.35070354]
[1770591977072,45.79195932,88.447,88.304,158.6506]
[1770591977257,45.79195932,88.429,88.348,10.1938]
[1770591977754,45.79195932,88.429,88.334,10.1954]
[1770591978068,45.79195932,88.429,88.302,158.654]
[1770591978360,45.79195932,88.429,88.275,34.23]
[1770591978559,45.79195932,88.429,88.32,24.69962092]
[1770591978763,45.79195932,88.429,88.3,24.69962092]
[1770591978969,45.79195932,88.429,88.343,10.1944]
[1770591979170,45.79195932,88.429,88.317,158.6263]
[1770591979362,45.79195932,88.429,88.371,10.1911]
[1770591979766,45.79195932,88.429,88.334,158.597]
[1770591979967,45.91727233,88.455,88.348,158.5713]
[1770591980369,45.91727233,88.455,88.386,10.1894]
[1770591981471,45.91727233,88.455,88.372,10.191]
[1770591981661,45.91727233,88.455,88.318,20.3946]
[1770591981662,46.08268469,88.449,88.318,20.3946]
[1770591981860,46.08268469,88.449,88.372,10.191]
[1770591982062,46.08268469,88.449,88.335,158.5953]
[1770591982568,46.08268469,88.449,88.369,10.1914]
[1770591984265,46.08268469,88.449,88.381,10.1901]
[1770591984463,46.08268469,88.449,88.321,34.23]
[1770591984663,46.08268469,88.449,88.355,158.5587]
[1770591984861,46.08268469,88.449,88.34,36.96445947]
[1770591984862,46.08268469,88.449,88.344,158.5788]
[1770591985064,46.08268469,88.449,88.347,158.5737]
[1770591985367,46.08268469,88.449,88.381,10.19]
[1770591986668,46.08268469,88.449,88.316,158.6291]
[1770591986975,46.08268469,88.449,88.321,158.6204]
[1770591987274,46.08268469,88.449,88.325,158.6131]
[1770591987466,46.08268469,88.449,88.329,158.6047]
[1770591987767,46.08268469,88.449,88.373,10.1909]
[1770591987971,46.08268469,88.449,88.342,158.5821]
[1770591988371,46.08268469,88.449,88.399,10.1879]
[1770591988765,46.08268469,88.449,88.357,158.5555]
[1770591988962,46.08268469,88.449,88.35,36.96445947]
[1770591989373,46.08268469,88.449,88.331,20.3915]
[1770591989772,46.08268469,88.449,88.38,10.1902]
[1770591989974,46.08268469,88.449,88.349,158.5686]
[1770591990276,45.41070214,88.472,88.359,158.5505]
[1770591990469,45.41070214,88.472,88.355,158.5583]
[1770591990669,45.41070214,88.472,88.35,36.96445947]
[1770591990670,45.41070214,88.472,88.358,158.5538]
[1770591990869,45.41070214,88.472,88.392,10.1888]
[1770591991066,45.41070214,88.472,88.356,158.5569]
[1770591991270,45.41070214,88.472,88.35,36.96445947]
[1770591991271,45.41070214,88.472,88.357,158.5558]
[1770591991572,45.41070214,88.472,88.35,36.96445947]
[1770591991772,45.41070214,88.472,88.355,158.5588]
[1770591991971,45.41070214,88.472,88.35,36.96445947]
[1770591992176,45.41070214,88.472,88.4,10.1878]
[1770591992970,40.72637839,88.449,88.322,34.23]
[1770591993164,40.72637839,88.429,88.313,3.09479391]
[1770591993571,40.72637839,88.413,88.335,10.1953]
[1770591993770,36.96445947,88.47,88.331,21.40039741]
[1770591993965,36.96445947,88.49,88.358,21.40039741]
[1770591994276,10.1782,88.484,88.397,10.1882]
[1770591994573,36.96445947,88.49,88.409,10.1868]
[1770591994772,36.96445947,88.49,88.358,21.40039741]
[1770591994969,36.96445947,88.47,88.358,21.40039741]
[1770591995170,36.96445947,88.45,88.331,19.49391222]
[1770591995677,36.0399564,88.469,88.341,19.83018692]
[1770591995869,36.0399564,88.469,88.379,10.1902]
[1770591996572,36.0399564,88.469,88.352,20.11361701]
[1770591996772,36.0399564,88.469,88.354,19.7517472]
[1770591996966,36.0399564,88.469,88.333,19.7517472]
[1770591997181,36.0399564,88.467,88.379,10.1903]
[1770591997576,36.0399564,88.467,88.356,20.08046912]
[1770591997882,36.0399564,88.467,88.378,20.03132322]
[1770591998473,36.0399564,88.467,88.405,10.1872]
[1770591998674,36.0399564,88.467,88.378,20.03132322]
[1770591999182,36.0399564,88.499,88.378,20.03132322]
[1770591999583,36.0399564,88.499,88.417,21.47859659]
[1770591999782,36.0399564,88.499,88.381,21.43371408]
[1770591999978,36.0399564,88.499,88.388,21.43371408]
[1770592000174,34.74072477,88.499,88.388,21.43371408]
[1770592000377,34.74072477,88.499,88.367,20.3833]
[1770592000378,34.74072477,88.499,88.402,23.05336871]
[1770592000576,10.44072001,88.555,88.461,23.05336871]
[1770592000777,10.44072001,88.555,88.413,20.3726]
[1770592000778,20.84021676,88.679,88.515,23.18955506]
[1770592001081,20.84021676,88.679,88.443,158.4012]
[1770592001082,36.96445947,88.63,88.47,158.3525]
[1770592001382,1.96496934,88.623,88.469,23.50581831]
[1770592001575,157.9909,88.673,88.48,23.50581831]
[1770592001777,36.96445947,88.63,88.539,10.1718]
[1770592001973,36.96445947,88.65,88.539,23.46232188]
[1770592002191,36.5325884,88.622,88.502,23.77478254]
[1770592002379,36.0399564,88.619,88.502,33.95088254]
[1770592002578,36.0399564,88.619,88.502,23.77478254]
[1770592002781,0.492632,88.622,88.537,25.6222256]
[1770592002986,36.0399564,88.609,88.48,25.6222256]
[1770592003178,36.0399564,88.609,88.423,158.4371]
[1770592003179,36.0399564,88.569,88.453,25.6222256]
[1770592003379,0.492632,88.622,88.447,25.93187125]
[1770592003380,36.0399564,88.549,88.447,25.93187125]
[1770592003575,36.0399564,88.549,88.45,25.93187125]
[1770592003778,36.96445947,88.59,88.463,25.89596971]
[1770592003979,36.0399564,88.589,88.491,184.21056971]
[1770592004178,36.0399564,88.615,88.502,184.49629902]
[1770592004385,3.2e-05,88.622,88.596,10.1653]
[1770592004582,3.2e-05,88.622,88.563,26.20169902]
[1770592004781,36.0399564,88.619,88.519,26.94696245]
[1770592004984,36.0399564,88.619,88.491,27.2124217]
[1770592005388,43.68380747,88.579,88.483,10.1782]
[1770592005587,43.68380747,88.579,88.431,27.51072341]
[1770592005891,43.68380747,88.579,88.457,27.45036563]
[1770592006087,43.68380747,88.579,88.403,20.375]
[1770592006088,43.68380747,88.579,88.481,27.74517164]
[1770592006384,43.68380747,88.579,88.49,27.74517164]
[1770592006591,43.68380747,88.619,88.516,10.1744]
[1770592006788,43.68380747,88.619,88.491,27.74517164]
[1770592007385,43.68380747,88.619,88.492,158.3135]
[1770592007589,43.68380747,88.619,88.493,26.59296476]
[1770592007776,43.68380747,88.619,88.515,10.1746]
[1770592008382,43.68380747,88.619,88.522,10.1737]
[1770592009483,43.68380747,88.619,88.515,25.61789669]
[1770592009875,43.68380747,88.619,88.515,35.79249669]
[1770592010079,43.68380747,88.619,88.515,25.61789669]
[1770592010480,3.2e-05,88.622,88.533,26.14577871]
[1770592011285,3.2e-05,88.622,88.453,158.3826]
[1770592011286,3.2e-05,88.622,88.504,27.06305545]
[1770592011589,43.68380747,88.619,88.508,27.06305545]
[1770592012092,3.2e-05,88.622,88.551,27.02717803]
[1770592012789,3.2e-05,88.622,88.553,10.1702]
[1770592013185,3.2e-05,88.622,88.554,25.09775968]
[1770592013394,3.2e-05,88.622,88.49,20.3549]
[1770592013395,3.2e-05,88.622,88.587,25.36969544]
[1770592013584,43.68380747,88.709,88.591,25.36969544]
[1770592013785,43.68380747,88.699,88.591,25.36969544]
[1770592014090,43.68380747,88.726,88.611,25.59769086]
[1770592014385,43.68380747,88.726,88.629,10.1615]
[1770592014582,43.68380747,88.726,88.63,25.59769086]
[1770592014983,43.68380747,88.726,88.55,36.96445947]
[1770592014984,43.68380747,88.726,88.6,20.84402611]
[1770592015185,43.68380747,88.709,88.578,21.11090527]
[1770592015377,43.68380747,88.771,88.611,21.11090527]
[1770592015580,43.68380747,88.771,88.663,10.1576]
[1770592016180,43.68380747,88.771,88.681,21.31971183]
[1770592016380,43.68380747,88.789,88.636,21.31971183]
[1770592016590,43.68380747,88.789,88.579,158.158]
[1770592016591,43.68380747,88.739,88.601,21.31971183]
[1770592017078,43.68380747,88.719,88.601,21.31971183]
[1770592017280,43.68380747,88.739,88.628,158.0698]
[1770592017487,43.68380747,88.765,88.644,28.94490831]
[1770592017688,43.68380747,88.765,88.64,36.96445947]
[1770592017689,43.68380747,88.765,88.655,28.91286296]
[1770592018085,43.68380747,88.749,88.655,28.91286296]
[1770592018288,1.96121528,88.833,88.6,29.16923613]
[1770592018289,43.68380747,88.709,88.6,29.16923613]
[1770592019590,43.68380747,88.699,88.6,29.16923613]
[1770592019993,43.68380747,88.725,88.6,29.16923613]
[1770592020188,225.78,88.801,88.61,36.96445947]
[1770592020388,43.68380747,88.739,88.611,34.93634551]
[1770592020691,225.78,88.801,88.59,36.96445947]
[1770592020692,43.68380747,88.74,88.631,34.93634551]
[1770592020884,43.68380747,88.766,88.631,34.93634551]
[1770592021088,43.68380747,88.749,88.651,26.19415883]
[1770592021292,43.68380747,88.709,88.584,26.44246176]
[1770592021587,43.68380747,88.689,88.584,26.44246176]
[1770592021793,43.68380747,88.729,88.591,26.40273069]
[1770592021989,43.68380747,88.729,88.613,26.40273069]
[1770592022692,43.68380747,88.749,88.616,26.64865235]
[1770592022897,43.68380747,88.729,88.616,26.64865235]
[1770592023084,36.96445947,88.71,88.57,36.96445947]
[1770592023284,43.68380747,88.689,88.591,26.44077449]
[1770592023691,43.68380747,88.689,88.551,26.40082348]
[1770592023988,43.68380747,88.689,88.495,225.86]
[1770592023989,43.68380747,88.689,88.571,26.40082348]
[1770592024393,43.68380747,88.689,88.596,26.64086089]
[1770592024598,43.68380747,88.718,88.602,26.64086089]
[1770592024889,43.68380747,88.759,88.629,32.11005296]
[1770592025093,43.68380747,88.739,88.629,32.11005296]
[1770592025296,43.68380747,88.739,88.629,42.27155296]
[1770592025496,43.68380747,88.719,88.591,32.34782657]
[1770592025898,43.68380747,88.719,88.608,32.32269703]
[1770592026095,43.68380747,88.719,88.61,36.96445947]
[1770592026396,43.68380747,88.719,88.628,32.55805772]
[1770592026788,43.68380747,88.719,88.616,30.28584447]
[1770592027196,43.68380747,88.744,88.62,36.96445947]
[1770592027392,43.68380747,88.744,88.635,30.51927645]
[1770592027898,43.68380747,88.734,88.611,30.48913888]
[1770592028302,43.68380747,88.734,88.618,30.71891696]
[1770592028487,43.68380747,88.734,88.641,30.71891696]
[1770592028890,43.68380747,88.769,88.641,30.71891696]
[1770592029298,225.66,88.917,88.71,36.96445947]
[1770592029588,225.66,88.917,88.713,27.91263334]
[1770592029589,43.68380747,88.838,88.713,27.91263334]
[1770592029794,43.68380747,88.819,88.713,27.91263334]
[1770592029992,43.68380747,88.799,88.683,27.87601738]
[1770592030199,43.68380747,88.797,88.683,27.87601738]
[1770592030399,43.68380747,88.779,88.657,28.10002388]
[1770592030901,43.68380747,88.805,88.691,27.13102877]
[1770592031413,43.68380747,88.805,88.71,10.1522]
[1770592031699,43.68380747,88.859,88.742,27.35259982]
[1770592031902,44.16717606,88.839,88.742,10.1485]
[1770592032196,44.16717606,88.839,88.661,158.0118]
[1770592032197,26.54517606,88.839,88.743,27.31467742]
[1770592032400,26.54517606,88.839,88.765,10.146]
[1770592032597,36.96445947,88.94,88.804,43.76543333]
[1770592032800,225.58,89.013,88.804,43.76543333]
[1770592032801,10.1249,88.95,88.804,43.76543333]
[1770592032994,36.96445947,88.93,88.804,43.76543333]
[1770592033198,36.96445947,88.92,88.804,43.76543333]
[1770592033391,36.96445947,88.94,88.817,43.76543333]
[1770592033591,36.96445947,88.95,88.823,43.76543333]
[1770592033801,36.96445947,88.94,88.823,43.76543333]
[1770592034097,36.96445947,88.94,88.826,10.139]
[1770592034302,36.96445947,88.92,88.787,43.76543333]
[1770592034600,43.68380747,88.939,88.826,43.76543333]
[1770592034808,157.4229,88.993,88.748,157.8562]
[1770592034809,43.68380747,88.981,88.844,43.76543333]
[1770592035001,43.68380747,88.981,88.766,157.8245]
[1770592035002,44.71176699,88.919,88.806,47.78713403]
[1770592035207,44.71176699,88.919,88.742,157.8664]
[1770592035208,44.71176699,88.949,88.852,47.78713403]
[1770592035406,44.71176699,88.949,88.813,47.78713403]
[1770592035605,44.71176699,88.949,88.833,47.78713403]
[1770592035809,1.9579436,88.993,88.835,47.78713403]
[1770592036018,36.96445947,88.96,88.839,47.82970998]
[1770592036310,36.96445947,88.91,88.81,47.82970998]
[1770592036914,36.96445947,88.91,88.78,36.96445947]
[1770592037110,36.96445947,88.87,88.781,47.82970998]
[1770592037313,36.96445947,88.87,88.755,47.82970998]
[1770592037506,36.96445947,88.85,88.755,47.82970998]
[1770592037911,44.24141184,88.849,88.72,36.96445947]
[1770592038115,44.24141184,88.849,88.721,47.82970998]
[1770592038412,35.04141184,88.849,88.725,47.82970998]
[1770592038708,35.04141184,88.849,88.663,158.0071]
[1770592038709,35.04141184,88.849,88.737,47.82970998]
[1770592038910,36.96445947,88.83,88.707,10.1526]
[1770592039218,36.96445947,88.81,88.707,47.82970998]
[1770592039407,36.96445947,88.84,88.707,47.82970998]
[1770592039609,36.96445947,88.84,88.727,47.82970998]
[1770592039903,36.96445947,88.84,88.614,158.0956]
[1770592039904,36.96445947,88.8,88.661,47.82970998]
[1770592040310,44.24141184,88.759,88.661,47.82970998]
[1770592040502,157.678,88.849,88.635,47.82970998]
[1770592040503,44.24141184,88.739,88.635,47.82970998]
[1770592040811,44.24141184,88.699,88.601,47.82970998]
[1770592041008,44.24141184,88.699,88.561,47.82970998]
[1770592041214,36.96445947,88.77,88.565,47.82970998]
[1770592041215,44.24141184,88.679,88.565,47.82970998]
[1770592041706,44.24141184,88.659,88.521,47.82970998]
[1770592042119,44.24141184,88.639,88.521,47.82970998]
[1770592042503,44.24141184,88.639,88.449,225.36]
[1770592042504,44.24141184,88.619,88.485,47.82970998]
[1770592042703,44.24141184,88.599,88.485,47.82970998]
[1770592043104,44.24141184,88.627,88.501,47.82970998]
[1770592043305,44.24141184,88.627,88.503,47.82970998]
[1770592044107,44.24141184,88.612,88.503,47.82970998]
[1770592044412,44.24141184,88.619,88.503,47.82970998]
[1770592044611,44.24141184,88.613,88.503,47.82970998]
[1770592045014,44.24141184,88.589,88.471,47.82970998]
[1770592045315,44.24141184,88.589,88.473,47.82970998]
[1770592045610,44.24141184,88.589,88.48,47.82970998]
[1770592045814,44.24141184,88.589,88.421,47.82970998]
[1770592046009,44.24141184,88.589,88.461,47.82970998]
[1770592046513,44.24141184,88.616,88.471,47.82970998]
[1770592046713,44.24141184,88.616,88.501,47.82970998]
[1770592047510,54.40461184,88.615,88.501,47.82970998]
[1770592048212,44.24141184,88.615,88.511,47.82970998]
[1770592048423,44.24141184,88.609,88.471,47.82970998]
[1770592048605,44.24141184,88.607,88.471,47.82970998]
[1770592048811,44.24141184,88.607,88.491,47.82970998]
[1770592049010,24.55959786,88.64,88.491,47.82970998]
[1770592049011,44.24141184,88.639,88.491,47.82970998]
[1770592049311,44.24141184,88.609,88.5,47.82970998]
[1770592049814,54.40531184,88.609,88.5,47.82970998]
[1770592050113,54.40531184,88.609,88.422,158.4377]
[1770592050114,44.24141184,88.589,88.461,47.82970998]
[1770592050614,44.24141184,88.569,88.461,47.82970998]
[1770592051109,44.24141184,88.549,88.461,47.82970998]
[1770592051505,44.24141184,88.578,88.461,47.82970998]
[1770592051711,24.55959786,88.57,88.461,47.82970998]
[1770592051918,24.55959786,88.55,88.431,47.82970998]
[1770592052107,44.24141184,88.548,88.431,47.82970998]
[1770592052721,10.1688,88.567,88.451,47.82970998]
[1770592052923,44.24141184,88.559,88.451,47.82970998]
[1770592053420,44.24141184,88.542,88.451,47.82970998]
[1770592053813,44.24141184,88.539,88.411,47.82970998]
[1770592054207,44.24141184,88.566,88.441,47.82970998]
[1770592054721,44.24141184,88.592,88.461,47.82970998]
[1770592054917,44.24141184,88.592,88.465,47.82970998]
[1770592055319,44.24141184,88.586,88.467,47.82970998]
[1770592055618,44.24141184,88.559,88.437,47.82970998]
[1770592056012,44.24141184,88.567,88.437,47.82970998]
[1770592056213,44.24141184,88.579,88.451,47.82970998]
[1770592056413,10.1684,88.569,88.451,47.82970998]
[1770592056612,44.24141184,88.579,88.451,47.82970998]
[1770592057226,44.24141184,88.56,88.451,47.82970998]
[1770592057417,44.24141184,88.559,88.451,47.82970998]
[1770592057824,44.24141184,88.585,88.481,47.82970998]
[1770592058218,44.24141184,88.585,88.484,47.82970998]
[1770592058722,44.24141184,88.585,88.488,47.82970998]
[1770592058916,44.24141184,88.614,88.488,47.82970998]
[1770592059113,44.24141184,88.644,88.521,47.82970998]
[1770592059313,157.8721,88.74,88.44,24.55959786]
[1770592059314,20.2928,88.762,88.56,24.55959786]
[1770592059517,44.24141184,88.729,88.591,47.82970998]
[1770592059714,44.24141184,88.709,88.591,47.82970998]
[1770592060118,44.24141184,88.729,88.591,47.82970998]
[1770592060620,302.36660442,88.784,88.59,24.55959786]
[1770592060621,44.24141184,88.728,88.613,47.82970998]
[1770592060814,157.7172,88.827,88.564,34.23]
[1770592060815,44.24141184,88.793,88.671,47.82970998]
[1770592061223,44.24141184,88.822,88.691,47.82970998]
[1770592061824,44.24141184,88.819,88.693,47.82970998]
[1770592062322,44.24141184,88.819,88.578,158.1592]
[1770592062323,44.24141184,88.799,88.666,47.82970998]
[1770592062520,44.24141184,88.779,88.666,47.82970998]
[1770592062716,44.24141184,88.779,88.533,158.2396]
[1770592062717,10.1486,88.743,88.638,47.82970998]
[1770592062916,44.24141184,88.82,88.687,157.9647]
[1770592063120,44.24141184,88.881,88.745,47.82970998]
[1770592063321,157.4581,88.973,88.662,158.0096]
[1770592063322,68.8010097,88.91,88.781,47.82970998]
[1770592063624,44.24141184,88.879,88.752,47.82970998]
[1770592063822,44.24141184,88.839,88.722,47.82970998]
[1770592064329,44.24141184,88.782,88.65,47.82970998]
[1770592064626,44.24141184,88.769,88.65,47.82970998]
[1770592065017,24.55959786,88.77,88.601,52.28966162]
[1770592065018,48.44365427,88.729,88.601,52.28966162]
[1770592065420,24.55959786,88.69,88.601,52.28966162]
[1770592065622,48.44365427,88.739,88.601,52.28966162]
[1770592066430,48.44365427,88.719,88.601,52.28966162]
[1770592066726,48.44365427,88.749,88.621,52.28966162]
[1770592066929,10.17122594,88.925,88.641,52.28966162]
[1770592067128,48.44365427,88.879,88.733,157.883]
[1770592067331,48.44365427,88.912,88.788,52.28966162]
[1770592067628,48.44365427,88.912,88.8,52.28966162]
[1770592067931,48.44365427,88.912,88.679,157.9791]
[1770592067932,48.44365427,88.879,88.768,52.28966162]
[1770592068330,48.44365427,88.859,88.731,52.28966162]
[1770592068521,48.44365427,88.891,88.76,24.55959786]
[1770592068722,48.44365427,88.891,88.761,52.28966162]
[1770592069028,322.56176193,88.99,88.763,157.8301]
[1770592069029,48.44365427,88.911,88.763,157.8301]
[1770592069232,48.44365427,88.989,88.792,157.7776]
[1770592069529,48.44365427,88.919,88.793,52.28966162]
[1770592070625,157.4816,88.96,88.793,52.28966162]
[1770592070626,48.44365427,88.889,88.793,52.28966162]
[1770592071033,322.56176193,88.99,88.695,157.9514]
[1770592071034,48.44365427,88.939,88.798,52.28966162]
[1770592071223,48.44365427,88.939,88.801,52.28966162]
[1770592071620,48.44365427,88.939,88.801,62.43146162]
[1770592071923,24.55959786,88.96,88.821,52.28966162]
[1770592072247,48.44365427,88.959,88.821,52.28966162]
[1770592072424,48.44365427,88.959,88.823,52.28966162]
[1770592072632,48.44365427,88.929,88.823,52.28966162]
[1770592073031,24.55959786,88.95,88.826,52.28966162]
[1770592073231,48.44365427,88.961,88.841,52.28966162]
[1770592073631,322.56176193,88.99,88.843,52.28966162]
[1770592073832,48.44365427,88.994,88.861,52.28966162]
[1770592074031,48.44365427,88.979,88.864,52.28966162]
[1770592074244,10.17122594,89.194,88.927,52.28966162]
[1770592074440,10.17122594,89.194,88.853,157.6697]
[1770592074441,24.55959786,88.99,88.871,52.28966162]
[1770592074737,24.55959786,88.93,88.803,52.28966162]
[1770592075240,24.55959786,88.93,88.811,52.28966162]
[1770592075539,24.55959786,88.93,88.818,52.28966162]
[1770592076135,225.4,89.045,88.786,52.28966162]
[1770592076136,24.55959786,88.9,88.786,52.28966162]
[1770592076438,48.44365427,88.899,88.786,52.28966162]
[1770592076642,24.55959786,88.92,88.799,52.28966162]
[1770592076829,48.44365427,88.929,88.803,52.28966162]
[1770592077032,48.44365427,88.986,88.853,52.28966162]
[1770592077741,48.44365427,88.986,88.858,52.28966162]
[1770592078237,48.44365427,88.986,88.864,62.42426162]
[1770592078738,48.44365427,88.986,88.843,10.137]
[1770592078931,48.44365427,88.986,88.843,62.42666162]
[1770592079641,48.44365427,88.986,88.867,62.42396162]
[1770592080247,48.44365427,88.986,88.867,52.28966162]
[1770592080842,48.44365427,88.969,88.875,52.28966162]
[1770592081043,48.44365427,88.969,88.855,157.6661]
[1770592081239,24.55959786,88.96,88.837,10.1377]
[1770592081443,48.44365427,88.959,88.838,52.28966162]
[1770592081639,225.3,89.016,88.732,178.1834]
[1770592081640,48.44365427,88.929,88.808,52.28966162]
[1770592081836,48.44365427,88.929,88.811,52.28966162]
[1770592082046,48.44365427,88.899,88.781,52.28966162]
[1770592082236,48.44365427,88.869,88.746,52.28966162]
[1770592082442,48.44365427,88.849,88.746,52.28966162]
[1770592082842,48.44365427,88.829,88.708,10.1524]
[1770592083142,48.44365427,88.789,88.665,52.28966162]
[1770592083546,48.44365427,88.789,88.668,10.157]
[1770592083750,24.55959786,88.77,88.665,52.28966162]
[1770592083947,24.55959786,88.77,88.672,10.1566]
[1770592084147,48.44365427,88.789,88.672,62.44626162]
[1770592084351,48.44365427,88.868,88.709,52.28966162]
[1770592084647,48.44365427,88.849,88.731,52.28966162]
[1770592084842,48.44365427,88.849,88.624,225.14]
[1770592084843,48.44365427,88.809,88.691,52.28966162]
[1770592085043,48.44365427,88.789,88.691,52.28966162]
[1770592085245,48.44365427,88.789,88.666,10.1572]
[1770592085447,48.44365427,88.769,88.66,52.28966162]
[1770592085645,48.44365427,88.749,88.629,52.28966162]
[1770592085841,24.55959786,88.73,88.629,52.28966162]
[1770592086044,48.44365427,88.749,88.638,10.1605]
[1770592086248,48.44365427,88.729,88.638,10.1605]
[1770592086553,48.44365427,88.759,88.651,10.159]
[1770592086749,48.44365427,88.739,88.639,52.28966162]
[1770592087051,48.44365427,88.719,88.608,52.28966162]
[1770592087654,48.44365427,88.719,88.539,158.2282]
[1770592087655,48.44365427,88.753,88.647,10.1594]
[1770592087851,48.44365427,88.739,88.626,52.28966162]
[1770592088251,48.44365427,88.739,88.631,10.1612]
[1770592088461,48.44365427,88.739,88.631,52.28966162]
[1770592088854,48.44365427,88.719,88.601,52.28966162]
[1770592089054,48.44365427,88.699,88.601,52.28966162]
[1770592089259,48.44365427,88.699,88.605,10.1642]
[1770592089471,48.44365427,88.699,88.601,52.28966162]
[1770592089659,48.44365427,88.699,88.571,52.28966162]
[1770592089861,48.44365427,88.699,88.57,24.55959786]
[1770592089862,48.44365427,88.679,88.54,52.28966162]
[1770592090051,48.44365427,88.659,88.547,52.28966162]
[1770592090259,48.44365427,88.639,88.547,52.28966162]
[1770592090463,48.44365427,88.639,88.525,10.1735]
[1770592090759,48.44365427,88.639,88.465,225.3]
[1770592090760,48.44365427,88.609,88.495,52.28966162]
[1770592091062,48.44365427,88.589,88.461,52.28966162]
[1770592091467,48.44365427,88.589,88.475,10.1792]
[1770592091967,48.44365427,88.579,88.466,10.1802]
[1770592092165,48.44365427,88.579,88.47,52.28966162]
[1770592092558,48.44365427,88.579,88.475,52.28966162]
[1770592092964,24.55959786,88.64,88.501,52.28966162]